bitfinex/quotes_SOLUSD_20240912
["timestamp","ask_amount","ask_price","bid_price","bid_amount"]
[1726122547063,6.6618,135.1,135.05,6.6641]
[1726122547266,6.6618,135.1,135.06,23.776884]
[1726122550661,6.6618,135.1,135.05,6.6641]
[1726122552965,30.09812679,135.11,135.06,31.92090413]
[1726122553289,30.09812679,135.11,135.06,30.440484]
[1726122554487,6.6618,135.1,135.06,23.776884]
[1726122554785,6.6618,135.1,135.05,23.3235]
[1726122559170,6.6602,135.13,135.08,6.6622]
[1726122560265,16.0241171,135.14,135.08,23.776884]
[1726122560466,6.6607,135.12,135.08,23.776884]
[1726122560799,6.6607,135.12,135.07,16.6569]
[1726122560800,6.6621,135.1,135.05,6.6637]
[1726122565696,15.8623,135.09,135.05,6.6637]
[1726122565995,15.8623,135.09,134.98,43.338]
[1726122565996,15.8623,135.09,135.0,16.9274171]
[1726122567379,6.6635,135.07,135.02,6.6656]
[1726122567713,6.6635,135.07,135.03,6.6651]
[1726122568503,6.6628,135.08,135.03,6.6651]
[1726122569509,6.6628,135.08,135.04,23.776884]
[1726122569903,22.5246,135.09,135.04,30.441384]
[1726122572202,15.8623,135.09,135.05,6.6641]
[1726122576593,15.8623,135.09,135.06,23.776884]
[1726122576794,15.8623,135.09,135.06,30.440384]
[1726122579910,22.536,135.12,135.08,23.776884]
[1726122580822,22.536,135.12,135.08,6.6627]
[1726122590404,6.6613,135.11,135.07,23.776884]
[1726122592333,22.5359,135.12,135.07,30.439884]
[1726122592803,0.2613171,135.14,135.09,38.41291156]
[1726122593003,6.9211171,135.14,135.11,23.776884]
[1726122593215,6.9211171,135.14,135.09,23.776884]
[1726122593423,0.2613171,135.14,135.09,30.438584]
[1726122593618,0.2613171,135.14,135.1,6.6616]
[1726122594235,0.2613171,135.14,135.11,23.776884]
[1726122598840,0.2613171,135.14,135.11,30.437984]
[1726122600050,0.2613171,135.14,135.12,8.14043798]
[1726122600232,0.2613171,135.14,135.12,6.6606]
[1726122600623,0.2613171,135.14,135.12,8.14039334]
[1726122601242,0.2613171,135.14,135.13,8.13998725]
[1726122601450,0.2613171,135.14,135.13,31.91687125]
[1726122602311,0.2613171,135.14,135.13,30.437084]
[1726122602743,0.2613171,135.14,135.12,16.6511]
[1726122602915,0.2613171,135.14,135.1,23.776884]
[1726122603115,6.6602,135.13,135.09,16.6553]
[1726122603519,23.3324171,135.14,135.09,23.3174]
[1726122604046,6.6602,135.13,135.09,23.3174]
[1726122604244,6.6602,135.13,135.09,16.6553]
[1726122604546,6.6602,135.13,135.09,23.3175]
[1726122606548,23.3324171,135.14,135.09,23.3175]
[1726122613256,6.6606,135.13,135.09,16.6553]
[1726122613637,29.5548171,135.14,135.09,23.3174]
[1726122616062,22.8950171,135.14,135.06,16.6591]
[1726122616733,6.6617,135.1,135.06,16.6591]
[1726122616931,23.1314,135.09,135.04,6.6646]
[1726122617135,22.7248,135.09,135.03,386.2]
[1726122617350,6.6632,135.07,135.03,386.2]
[1726122621744,6.6628,135.08,135.03,392.8651]
[1726122625558,6.6632,135.07,135.03,386.2]
[1726122626148,6.664,135.06,135.03,386.2]
[1726122626835,6.6633,135.07,135.03,386.2]
[1726122633479,6.6633,135.07,135.03,392.8651]
[1726122639680,6.6627,135.08,135.04,6.6646]
[1726122640276,6.6632,135.07,135.03,392.8651]
[1726122641386,6.6628,135.08,135.03,392.8651]
[1726122643377,6.6633,135.07,135.03,392.8651]
[1726122644783,6.6638,135.06,135.03,386.2]
[1726122647366,6.6633,135.07,135.03,386.2]
[1726122653482,6.6633,135.07,135.02,23.3291]
[1726122653679,6.6628,135.08,135.03,30.441884]
[1726122653857,6.6628,135.08,135.03,31.92277076]
[1726122654462,6.6633,135.07,135.03,6.665]
[1726122654957,6.6633,135.07,135.02,23.329]
[1726122655557,6.6637,135.06,135.02,23.329]
[1726122659271,6.6637,135.06,135.02,16.6635]
[1726122659586,22.7248,135.09,135.0,23.2230171]
[1726122659587,6.6643,135.05,135.0,23.2230171]
[1726122659964,16.6574,135.08,135.0,0.2613171]
[1726122660169,6.6656,135.02,135.0,0.2613171]
[1726122660366,6.6652,135.03,135.0,0.2613171]
[1726122663578,21.8738,135.04,135.0,0.2613171]
[1726122663785,6.6651,135.03,135.0,0.2613171]
[1726122667283,21.8738,135.04,135.0,0.2613171]
[1726122670692,6.6643,135.05,135.0,6.9277171]
[1726122671865,15.475,135.07,135.01,25.25803253]
[1726122672190,15.475,135.07,135.02,1.48089533]
[1726122672396,22.1382,135.07,135.02,6.6652]
[1726122674291,6.6627,135.08,135.03,6.665]
[1726122675762,6.6627,135.08,135.03,8.14581032]
[1726122676284,6.6627,135.08,135.03,6.665]
[1726122676590,6.6632,135.07,135.03,6.665]
[1726122676790,6.6632,135.07,135.02,16.6633]
[1726122676791,6.6632,135.07,135.02,23.3289]
[1726122678409,6.2557,135.09,135.02,16.6633]
[1726122678709,6.6642,135.05,135.01,30.442984]
[1726122679197,6.6642,135.05,135.01,23.776884]
[1726122680792,6.6642,135.05,135.01,30.442984]
[1726122680996,6.6637,135.06,135.01,30.442984]
[1726122686594,6.6633,135.07,135.02,6.6653]
[1726122688812,6.6628,135.08,135.03,23.776884]
[1726122689098,6.6619,135.1,135.06,6.6636]
[1726122689285,22.5646035,135.11,135.06,6.6636]
[1726122689477,6.6608,135.12,135.07,6.6631]
[1726122689680,6.6608,135.12,135.08,1.48032681]
[1726122689997,22.3599,135.13,135.08,6.6626]
[1726122690384,15.6996,135.13,135.06,23.776884]
[1726122692304,6.6613,135.11,135.06,30.440084]
[1726122692601,6.6607,135.12,135.07,6.6631]
[1726122692787,6.6607,135.12,135.08,23.776884]
[1726122693501,6.6603,135.13,135.08,30.439484]
[1726122694090,0.2613171,135.14,135.08,23.776884]
[1726122694608,0.2613171,135.14,135.1,6.6617]
[1726122694809,0.2613171,135.14,135.11,1.47992837]
[1726122695307,0.2613171,135.14,135.1,6.6617]
[1726122697615,6.9210171,135.14,135.1,6.6617]
[1726122698283,6.9210171,135.14,135.1,23.776884]
[1726122701312,6.9210171,135.14,135.09,23.3167]
[1726122702688,0.2613171,135.14,135.11,6.6608]
[1726122702898,0.2613171,135.14,135.12,30.437484]
[1726122703184,0.2613171,135.14,135.13,31.24556588]
[1726122703687,0.2613171,135.14,135.13,31.91664996]
[1726122704890,0.2613171,135.14,135.13,30.437084]
[1726122708516,0.2613171,135.14,135.13,45.645784]
[1726122715034,0.2613171,135.14,135.13,45.896764]
[1726122716614,0.2613171,135.14,135.13,45.771274]
[1726122718527,0.2613171,135.14,135.13,45.645784]
[1726122720815,0.2613171,135.14,135.13,45.771274]
[1726122722227,0.2613171,135.14,135.13,45.645784]
[1726122723138,0.2613171,135.14,135.13,6.6602]
[1726122724422,0.2613171,135.14,135.13,30.437084]
[1726122724602,0.2613171,135.14,135.11,402.8522]
[1726122724808,0.2613171,135.14,135.11,409.5134]
[1726122725415,0.2613171,135.14,135.11,23.3134]
[1726122725916,0.2613171,135.14,135.08,16.6566]
[1726122727332,6.9210171,135.14,135.09,30.439084]
[1726122727708,0.2613171,135.14,135.09,23.776884]
[1726122727908,0.2613171,135.14,135.09,30.438784]
[1726122730436,6.6603,135.13,135.09,23.776884]
[1726122730639,0.2613171,135.14,135.06,6.6636]
[1726122730640,23.2176,135.12,135.06,6.6636]
[1726122731218,23.2176,135.12,135.07,6.6632]
[1726122732524,23.2176,135.12,135.05,16.6604]
[1726122732525,6.6612,135.11,135.06,30.440484]
[1726122732725,29.5768,135.12,135.07,6.6631]
[1726122734338,6.6613,135.11,135.06,30.440484]
[1726122735533,6.6613,135.11,135.07,6.6631]
[1726122736333,6.6618,135.1,135.06,23.776884]
[1726122736521,6.6622,135.09,135.06,23.776884]
[1726122737128,22.916,135.12,135.06,23.776884]
[1726122737327,22.916,135.12,135.05,16.6604]
[1726122737829,6.6623,135.09,135.05,16.6604]
[1726122738028,6.6623,135.09,135.05,23.3245]
[1726122738947,6.6618,135.1,135.05,23.3245]
[1726122739525,6.6612,135.11,135.06,30.440384]
[1726122739724,6.6612,135.11,135.07,6.6631]
[1726122741322,22.916,135.12,135.05,23.3245]
[1726122741855,6.6621,135.1,135.05,23.3245]
[1726122742063,6.6622,135.09,135.05,23.3245]
[1726122742347,6.6622,135.09,135.05,16.6604]
[1726122743133,22.916,135.12,135.01,386.2]
[1726122743341,6.6634,135.07,135.02,6.6652]
[1726122743645,12.9514,135.07,135.02,6.6652]
[1726122744026,6.288,135.07,135.03,6.6651]
[1726122745319,6.288,135.07,135.01,16.6645]
[1726122745320,6.288,135.07,135.04,6.6644]
[1726122745635,6.288,135.07,135.02,6.6656]
[1726122745636,12.9512,135.07,135.02,6.6656]
[1726122745837,6.6638,135.06,135.01,23.3306]
[1726122746047,16.3723,135.05,135.01,23.3306]
[1726122746221,23.0368,135.05,135.0,6.9279171]
[1726122746424,16.3723,135.05,135.0,0.2613171]
[1726122747463,6.6647,135.04,135.0,0.2613171]
[1726122748141,23.0366,135.05,135.0,0.2613171]
[1726122748325,23.0366,135.05,135.0,6.9278171]
[1726122748722,16.3723,135.05,135.0,0.2613171]
[1726122748970,16.3723,135.05,135.01,30.442884]
[1726122749248,16.3723,135.05,135.01,6.666]
[1726122750258,16.3723,135.05,135.02,30.442384]
[1726122750821,16.3723,135.05,135.03,6.665]
[1726122751129,16.3723,135.05,135.04,23.776884]
[1726122752341,6.288,135.07,135.04,6.6646]
[1726122752550,15.8477,135.08,135.06,6.6636]
[1726122753946,22.1919,135.11,135.08,6.6626]
[1726122754175,22.1919,135.11,135.08,8.14287267]
[1726122755550,22.1919,135.11,135.08,6.6626]
[1726122755765,22.1919,135.11,135.07,30.440084]
[1726122756655,28.8534,135.11,135.07,23.776884]
[1726122759538,22.1919,135.11,135.07,30.439984]
[1726122760435,22.1919,135.11,135.03,16.6626]
[1726122760627,22.1919,135.11,135.04,23.776884]
[1726122760848,22.1919,135.11,135.03,23.3273]
[1726122761043,22.1919,135.11,135.0,417.76354466]
[1726122761242,6.6636,135.07,135.02,6.6656]
[1726122761954,22.1919,135.11,135.03,6.6651]
[1726122761955,6.6628,135.08,135.03,6.6651]
[1726122763137,6.6632,135.07,135.03,6.6651]
[1726122763357,6.6632,135.07,135.02,6.6655]
[1726122763661,6.6632,135.07,135.03,23.776884]
[1726122763662,15.5636,135.06,135.03,23.776884]
[1726122766055,15.5636,135.06,135.01,6.666]
[1726122766261,21.724,135.06,135.01,6.666]
[1726122767351,6.6642,135.05,135.01,6.666]
[1726122767760,6.6642,135.05,135.01,23.776884]
[1726122767956,21.724,135.06,135.0,0.2613171]
[1726122768264,6.6647,135.04,135.0,24.0382011]
[1726122768655,28.3881,135.06,135.0,30.7048011]
[1726122769348,6.6643,135.05,135.0,30.7048011]
[1726122773159,28.3877,135.06,135.02,6.6655]
[1726122773754,21.724,135.06,135.02,6.6655]
[1726122776269,28.3877,135.06,135.02,6.6655]
[1726122776470,28.3877,135.06,135.02,23.776884]
[1726122780349,28.3877,135.06,135.0,23.5936171]
[1726122780350,6.6643,135.05,135.0,23.5936171]
[1726122783870,6.6643,135.05,135.01,31.92394148]
[1726122784079,6.6643,135.05,135.01,30.442884]
[1726122784369,28.3878,135.06,135.02,6.6655]
[1726122785277,21.724,135.06,135.02,6.6655]
[1726122786493,21.724,135.06,135.03,23.776884]
[1726122787268,21.724,135.06,135.03,30.441584]
[1726122787475,15.5636,135.06,135.05,23.776884]
[1726122787889,29.3748,135.09,135.05,23.776884]
[1726122788261,22.7125,135.09,135.05,30.440784]
[1726122788569,16.6326,135.09,135.05,30.440784]
[1726122789383,16.6326,135.09,135.06,6.6636]
[1726122789606,16.6326,135.09,135.07,23.776884]
[1726122789789,16.6326,135.09,135.07,30.439984]
[1726122790154,12.8506,135.12,135.07,30.439984]
[1726122790472,12.8506,135.12,135.08,8.14278832]
[1726122790473,6.1899,135.12,135.08,8.14278832]
[1726122791380,6.1899,135.12,135.09,23.776884]
[1726122791552,6.1899,135.12,135.08,6.6626]
[1726122791749,6.1899,135.12,135.09,23.776884]
[1726122793886,21.9661,135.13,135.09,23.776884]
[1726122795361,21.9661,135.13,135.09,30.438984]
[1726122795578,15.3059,135.13,135.09,30.438984]
[1726122797187,21.9662,135.13,135.09,23.776884]
[1726122803493,6.6607,135.12,135.09,23.776884]
[1726122803866,21.9661,135.13,135.09,23.776884]
[1726122805662,15.3059,135.13,135.09,30.438884]
[1726122805867,15.3059,135.13,135.1,6.6615]
[1726122806182,15.3059,135.13,135.11,30.437784]
[1726122806764,0.2613171,135.14,135.11,31.9176921]
[1726122810789,0.2613171,135.14,135.12,6.6606]
[1726122810986,0.2613171,135.14,135.13,25.25659517]
[1726122811786,0.2613171,135.14,135.13,31.91679517]
[1726122811996,0.2613171,135.14,135.13,30.437084]
[1726122812290,0.2613171,135.14,135.13,23.776884]
[1726122812492,0.2613171,135.14,135.1,16.6535]
[1726122812699,6.9210171,135.14,135.1,16.6535]
[1726122813100,6.6602,135.13,135.08,386.2]
[1726122813604,22.913,135.12,135.08,386.2]
[1726122815200,22.913,135.12,135.07,16.6576]
[1726122815401,22.913,135.12,135.07,23.3207]
[1726122816287,22.913,135.12,135.08,23.776884]
[1726122821990,22.913,135.12,135.08,30.439384]
[1726122827308,22.913,135.12,135.08,23.776884]
[1726122832805,6.9211171,135.14,135.1,6.6616]
[1726122832989,6.9211171,135.14,135.11,23.776884]
[1726122832990,0.2613171,135.14,135.11,23.776884]
[1726122840514,0.2613171,135.14,135.11,6.661]
[1726122842730,0.2613171,135.14,135.1,30.438484]
[1726122842925,6.9211171,135.14,135.1,30.438484]
[1726122843113,6.6605,135.13,135.09,16.6549]
[1726122848405,6.9211171,135.14,135.1,23.776884]
[1726122851035,6.9211171,135.14,135.1,30.438484]
[1726122851242,0.2613171,135.14,135.1,30.438484]
[1726122852425,0.2613171,135.14,135.11,6.661]
[1726122852733,0.2613171,135.14,135.12,30.437584]
[1726122853123,0.2613171,135.14,135.12,31.91737251]
[1726122853909,0.2613171,135.14,135.13,30.437084]
[1726122854427,0.2613171,135.14,135.13,31.91656964]
[1726122854606,0.2613171,135.14,135.13,45.07311156]
[1726122859614,0.2613171,135.14,135.13,45.19860156]
[1726122865518,0.2613171,135.14,135.13,30.562574]
[1726122867144,0.2613171,135.14,135.13,30.437084]
[1726122867351,0.2613171,135.14,135.13,6.6602]
[1726122867531,0.2613171,135.14,135.12,6.6606]
[1726122868552,0.2613171,135.14,135.13,6.6602]
[1726122868728,0.2613171,135.14,135.13,30.437084]
[1726122871019,0.2613171,135.14,135.11,402.8523]
[1726122871224,0.2613171,135.14,135.11,386.2]
[1726122872034,0.2613171,135.14,135.1,6.6616]
[1726122872540,0.2613171,135.14,135.11,23.776884]
[1726122872734,6.9211171,135.14,135.11,23.776884]
[1726122880567,0.2613171,135.14,135.11,23.776884]
[1726122880852,16.0182,135.12,135.08,6.6627]
[1726122881240,16.0182,135.12,135.07,6.6631]
[1726122882037,16.0182,135.12,135.06,386.2]
[1726122882234,6.6622,135.09,135.06,386.2]
[1726122882634,6.6617,135.1,135.06,386.2]
[1726122883160,6.6622,135.09,135.06,386.2]
[1726122886057,6.6618,135.1,135.06,386.2]
[1726122886581,13.2777,135.11,135.07,23.776884]
[1726122888273,20.97890472,135.11,135.07,23.776884]
[1726122902095,20.97890472,135.11,135.05,6.6641]
[1726122902096,6.6618,135.1,135.05,6.6641]
[1726122902389,6.6622,135.09,135.06,23.776884]
[1726122903196,14.31770472,135.11,135.0,22.4043171]
[1726122903197,6.593,135.07,135.01,16.6649]
[1726122903495,6.593,135.07,135.0,0.2613171]
[1726122903795,7.7171255,135.06,135.0,0.2613171]
[1726122904495,6.6646,135.04,135.0,0.2613171]
[1726122905207,6.6646,135.04,135.0,24.0382011]
[1726122918205,21.7323,135.04,135.0,24.0382011]
[1726122919997,29.44924422,135.04,135.0,24.0382011]
[1726122922501,6.6654,135.03,135.0,0.2613171]
[1726122925100,22.78464422,135.04,135.0,0.2613171]
[1726122925296,6.6658,135.02,135.0,0.2613171]
[1726122934720,12.8933,135.03,135.0,0.2613171]
[1726122935096,6.6657,135.02,135.0,0.2613171]
[1726122937492,6.2281,135.03,135.0,0.2613171]
[1726122937703,6.6661,135.01,135.0,0.2613171]
[1726122938198,14.38729829,135.01,135.0,0.2613171]
[1726122944295,6.6661,135.01,135.0,0.2613171]
[1726122947227,7.72113954,135.02,135.0,0.2613171]
[1726122959336,6.6661,135.01,135.0,0.2613171]
[1726122969037,6.6661,135.01,134.96,0.2613171]
[1726122969038,6.6681,134.97,134.96,0.2613171]
[1726122969748,23.1281,134.97,134.96,0.2613171]
[1726122973834,6.67,134.94,134.92,0.2613171]
[1726122976364,6.6697,134.94,134.92,0.2613171]
[1726122978943,6.6701,134.93,134.92,0.2613171]
[1726122980260,14.38839646,134.93,134.92,0.2613171]
[1726122984169,36.99079646,134.93,134.92,0.2613171]
[1726122989261,36.99079646,134.93,134.88,0.2613171]
[1726122989262,6.6716,134.9,134.88,0.2613171]
[1726122990240,6.6721,134.89,134.88,0.2613171]
[1726122995476,6.6721,134.89,134.84,0.2613171]
[1726122995477,6.674,134.85,134.84,0.2613171]
[1726122996776,6.6735,134.87,134.84,0.2613171]
[1726122997088,6.6735,134.87,134.84,0.1904544]
[1726122997672,6.6725,134.88,134.84,0.1904544]
[1726122997875,7.71819558,134.9,134.84,14.82648196]
[1726122998177,7.71819558,134.9,134.87,6.673]
[1726122998677,7.71819558,134.9,134.85,23.3575]
[1726122999257,14.38979558,134.9,134.85,23.3575]
[1726122999482,14.38979558,134.9,134.85,16.684]
[1726122999779,6.6722,134.89,134.85,16.684]
[1726123000179,6.6722,134.89,134.84,6.8649544]
[1726123000180,6.6726,134.88,134.84,0.1904544]
[1726123000374,6.673,134.88,134.84,0.1904544]
[1726123000580,6.6732,134.87,134.84,0.1904544]
[1726123001080,14.39222726,134.88,134.84,0.1904544]
[1726123002662,7.71962726,134.88,134.84,6.8648544]
[1726123002868,7.71962726,134.88,134.85,6.674]
[1726123005184,6.6717,134.9,134.85,6.674]
[1726123005387,6.6711,134.91,134.85,6.674]
[1726123005588,7.71797158,134.9,134.86,6.6735]
[1726123007782,14.38957158,134.9,134.85,6.674]
[1726123012196,14.38957158,134.9,134.85,6.8644544]
[1726123012497,14.38957158,134.9,134.86,6.6735]
[1726123012795,14.38957158,134.9,134.85,6.8643544]
[1726123012969,6.6721,134.89,134.85,0.1904544]
[1726123014069,6.6727,134.88,134.85,0.1904544]
[1726123015466,6.6722,134.89,134.85,0.1904544]
[1726123015897,7.71638342,134.88,134.85,0.1904544]
[1726123016203,14.38898342,134.88,134.85,0.1904544]
[1726123019589,7.71638342,134.88,134.85,0.1904544]
[1726123020797,14.38898342,134.88,134.85,0.1904544]
[1726123021502,6.6731,134.87,134.85,0.1904544]
[1726123021886,14.38898342,134.88,134.85,0.1904544]
[1726123022406,6.6708,134.92,134.87,6.673]
[1726123022574,22.0458,134.93,134.86,6.6734]
[1726123022769,22.0458,134.93,134.85,16.8743544]
[1726123022770,14.38969823,134.9,134.85,23.5482544]
[1726123023013,6.6721,134.89,134.85,16.8743544]
[1726123023310,14.39037726,134.89,134.85,16.8743544]
[1726123024203,14.39037726,134.89,134.85,23.5483544]
[1726123024394,7.71827726,134.89,134.85,23.5483544]
[1726123025679,7.71827726,134.89,134.86,23.776884]
[1726123026003,7.71827726,134.89,134.87,6.673]
[1726123026773,7.71827726,134.89,134.88,6.6725]
[1726123028397,7.71827726,134.89,134.88,30.449384]
[1726123029007,7.71827726,134.89,134.88,6.6725]
[1726123030204,22.2204,134.93,134.88,6.6725]
[1726123030401,7.71655109,134.91,134.88,6.6725]
[1726123030989,7.71655109,134.91,134.87,16.6819]
[1726123031182,14.38775109,134.91,134.87,16.6819]
[1726123031388,6.6707,134.92,134.87,23.3549]
[1726123031683,7.71692037,134.91,134.87,23.3549]
[1726123032401,7.71692037,134.91,134.85,6.8640544]
[1726123033104,6.672,134.9,134.85,6.8640544]
[1726123033916,6.672,134.9,134.85,0.1904544]
[1726123033917,6.3229,134.9,134.85,0.1904544]
[1726123034289,15.9243,134.89,134.85,0.1904544]
[1726123035303,6.6735,134.86,134.85,0.1904544]
[1726123036008,6.6731,134.87,134.85,0.1904544]
[1726123039018,6.6735,134.86,134.85,0.1904544]
[1726123040605,16.1755,134.86,134.8,0.293592]
[1726123040817,6.4914,134.85,134.8,0.293592]
[1726123041304,6.676,134.81,134.8,0.293592]
[1726123042125,7.72084942,134.81,134.8,0.293592]
[1726123042318,14.39684942,134.81,134.8,0.293592]
[1726123042497,7.72084942,134.81,134.8,0.293592]
[1726123044121,14.39684942,134.81,134.8,0.293592]
[1726123049333,6.6778,134.78,134.76,0.293592]
[1726123049635,6.678,134.77,134.76,0.293592]
[1726123052405,14.44475636,134.77,134.76,0.293592]
[1726123053817,7.76675636,134.77,134.76,0.293592]
[1726123054422,6.6771,134.79,134.76,0.293592]
[1726123054816,7.7654065,134.78,134.76,0.293592]
[1726123055136,6.678,134.77,134.76,0.293592]
[1726123057122,14.4430065,134.78,134.76,0.293592]
[1726123057621,14.4430065,134.78,134.73,6.6799]
[1726123057823,14.4430065,134.78,134.76,0.1429568]
[1726123058339,6.678,134.77,134.76,0.1429568]
[1726123068323,22.4605,134.77,134.76,0.1429568]
[1726123068737,22.4605,134.77,134.74,5.04e-05]
[1726123068738,62.885,134.75,134.74,5.04e-05]
[1726123068933,6.681,134.71,134.7,0.2656504]
[1726123069531,14.44875091,134.71,134.7,0.2656504]
[1726123070521,7.76775091,134.71,134.7,0.2656504]
[1726123071025,22.861,134.72,134.7,0.2656504]
[1726123071438,6.68,134.73,134.7,0.2656504]
[1726123073544,14.4467529,134.74,134.7,0.2656504]
[1726123074125,6.6801,134.73,134.7,0.2656504]
[1726123074939,21.1286529,134.74,134.7,0.2656504]
[1726123075142,7.7667529,134.74,134.7,6.9470504]
[1726123077257,7.7667529,134.74,134.7,0.2656504]
[1726123077459,22.6558,134.79,134.7,0.2656504]
[1726123077753,7.76406664,134.77,134.71,16.7014]
[1726123078462,14.44206664,134.77,134.72,6.68]
[1726123078779,14.44206664,134.77,134.73,6.6798]
[1726123078780,7.76406664,134.77,134.73,6.6798]
[1726123078950,14.44206664,134.77,134.72,6.6804]
[1726123080464,6.6767,134.8,134.75,30.455784]
[1726123080654,6.6771,134.79,134.74,23.3781]
[1726123081158,6.6771,134.79,134.74,16.6988]
[1726123081335,6.6776,134.78,134.74,16.6988]
[1726123081819,6.6776,134.78,134.72,6.6804]
[1726123082070,6.6776,134.78,134.73,6.6799]
[1726123082239,7.76472666,134.8,134.73,6.6799]
[1726123082240,6.677,134.79,134.73,6.6799]
[1726123082637,6.677,134.79,134.7,31.60427796]
[1726123082638,6.677,134.79,134.74,6.6795]
[1726123082851,7.76472666,134.8,134.75,6.6789]
[1726123084184,0.2656504,134.84,134.78,23.776884]
[1726123084387,0.2656504,134.84,134.79,6.6765]
[1726123084578,0.2656504,134.84,134.81,6.676]
[1726123085285,0.2656504,134.84,134.8,16.6904]
[1726123085770,0.2656504,134.84,134.8,23.3669]
[1726123086166,0.2656504,134.84,134.8,16.6904]
[1726123088568,0.2656504,134.84,134.8,23.3667]
[1726123089699,6.9402504,134.84,134.8,16.6904]
[1726123091494,0.2656504,134.84,134.8,23.3669]
[1726123092271,0.2656504,134.84,134.78,6.6774]
[1726123092272,6.675,134.83,134.78,6.6774]
[1726123092575,6.6762,134.81,134.77,16.695]
[1726123092984,6.6756,134.82,134.77,23.373]
[1726123093193,6.675,134.83,134.78,6.6774]
[1726123093377,0.2656504,134.84,134.79,6.6769]
[1726123093578,6.9401504,134.84,134.79,6.6769]
[1726123093762,0.2656504,134.84,134.8,6.6763]
[1726123095899,6.9401504,134.84,134.79,6.677]
[1726123096184,0.2656504,134.84,134.8,30.453284]
[1726123096393,0.2656504,134.84,134.8,6.6764]
[1726123097993,0.2656504,134.84,134.82,6.6754]
[1726123098779,0.2656504,134.84,134.81,6.6759]
[1726123099175,6.9401504,134.84,134.79,16.6915]
[1726123099383,0.2656504,134.84,134.79,16.6915]
[1726123100383,6.9402504,134.84,134.79,23.3681]
[1726123101301,0.2656504,134.84,134.8,6.6764]
[1726123101671,0.2656504,134.84,134.81,6.6759]
[1726123108092,0.2656504,134.84,134.8,30.453284]
[1726123114507,6.9403504,134.84,134.8,30.453284]
[1726123115106,6.9403504,134.84,134.8,23.776884]
[1726123115308,6.675,134.83,134.79,16.6915]
[1726123116606,6.6763,134.81,134.76,16.6962]
[1726123116781,16.6365,134.82,134.76,16.6962]
[1726123116782,6.6765,134.8,134.76,16.6962]
[1726123116981,6.6761,134.81,134.76,23.3746]
[1726123119804,6.6765,134.8,134.76,23.3746]
[1726123122387,6.6761,134.81,134.76,23.3746]
[1726123123488,23.312,134.82,134.77,6.6778]
[1726123124788,16.6365,134.82,134.79,6.6768]
[1726123124988,6.9113504,134.84,134.8,6.6763]
[1726123125314,0.2656504,134.84,134.8,6.6764]
[1726123125517,0.2656504,134.84,134.81,6.6759]
[1726123127200,0.2656504,134.84,134.82,6.6755]
[1726123127597,0.2656504,134.84,134.81,30.452784]
[1726123128515,0.2656504,134.84,134.81,23.776884]
[1726123131841,0.2656504,134.84,134.81,30.452884]
[1726123134022,0.2656504,134.84,134.83,45.276817]
[1726123135207,0.2656504,134.84,134.83,46.75984421]
[1726123135514,0.2656504,134.84,134.83,45.276817]
[1726123140496,0.2656504,134.84,134.83,6.675]
[1726123140701,0.2656504,134.84,134.82,16.6879]
[1726123148531,0.2656504,134.84,134.83,30.451884]
[1726123148721,0.2656504,134.84,134.83,31.93482404]
[1726123149098,0.2656504,134.84,134.83,6.675]
[1726123149502,0.2656504,134.84,134.82,16.6879]
[1726123149503,0.2656504,134.84,134.82,23.3633]
[1726123150709,0.2656504,134.84,134.83,6.675]
[1726123151332,0.2656504,134.84,134.83,30.451884]
[1726123151909,0.2656504,134.84,134.83,45.276817]
[1726123153225,0.2656504,134.84,134.83,46.75960043]
[1726123153712,0.2656504,134.84,134.83,45.276817]
[1726123153913,0.2656504,134.84,134.83,46.75944728]
[1726123155433,0.2656504,134.84,134.83,45.276817]
[1726123155808,0.2656504,134.84,134.83,45.402307]
[1726123156628,0.2656504,134.84,134.83,45.527797]
[1726123156856,0.2656504,134.84,134.83,71.16479476]